[Event "58th Akiba Rubinstein D 2022"]
[Site "Polanica-Zdroj"]
[Date "2022.08.16"]
[Round "4.27"]
[White "Markiewicz, Jacek"]
[Black "Jankowski, Franciszek"]
[Result "1/2-1/2"]
[ECO "B13"]
[WhiteElo "1610"]
[BlackElo "1483"]
[Annotator "NA RC"]
[PlyCount "37"]
[EventDate "2022.08.13"]
[EventCountry "POL"]
[SourceTitle "playchess.com"]
[Source "ChessBase"]
[SourceQuality "1"]
[TimeControl "40/5400+30:1800+30"]

1. e4 {[%emt 0:00:05]} c6 {[%emt 0:00:32]} 2. c4 {[%emt 0:00:24]} d5 {[%emt 0:00:08]} 3. exd5 {[%emt 0:00:09]} cxd5 {[%emt 0:00:06]} 4. d4 {[%emt 0:00:12]} Nf6 {[%emt 0:00:39]} 5. Nc3 {[%emt 0:00:07]} Nc6 {[%emt 0:01:20]} 6. Nf3 {[%emt 0:01:50]} Bg4 {[%emt 0:04:38]} 7. Be3 {[%emt 0:04:32]} e6 {[%emt 0:00:50]} 8. Be2 {[%emt 0:05:22]} Be7 {[%emt 0:04:46]} 9. O-O {[%emt 0:00:34]} O-O {[%emt 0:00:12]} 10. h3 {[%emt 0:07:50]} Bh5 11. Ne5 {[%emt 0:11:13]} Bxe2 {[%emt 0:03:01]} 12. Qxe2 {[%emt 0:00:29]} Rc8 {[%emt 0:04:14]} 13. Rfd1 {[%emt 0:04:10]} dxc4 {[%emt 0:10:42]} 14. Nxc4 {[%emt 0:02:13]} Nb4 {[%emt 0:03:09]} 15. Rac1 {[%emt 0:06:29]} Nbd5 {[%emt 0:01:15]} 16. Ne5 {[%emt 0:33:58]} Qa5 {[%emt 0:15:13]} 17. Bd2 {[%emt 0:09:19]} Qd8 18. Be3 Qa5 19. Bd2 1/2-1/2

[Event "58th Akiba Rubinstein D 2022"]
[Site "Polanica-Zdroj"]
[Date "2022.08.16"]
[Round "4.28"]
[White "Szalbierz, Piotr"]
[Black "Blasiak, Miroslaw"]
[Result "1/2-1/2"]
[ECO "D00"]
[WhiteElo "1407"]
[BlackElo "1608"]
[Annotator "NA RC"]
[PlyCount "29"]
[EventDate "2022.08.13"]
[EventCountry "POL"]
[SourceTitle "playchess.com"]
[Source "ChessBase"]
[SourceQuality "1"]
[TimeControl "40/5400+30:1800+30"]

1. d4 d5 {[%emt 0:06:59]} 2. Nc3 {[%emt 0:00:08]} Nf6 {[%emt 0:00:19]} 3. Bf4 {[%emt 0:00:07]} c5 {[%emt 0:03:55]} 4. e3 {[%emt 0:00:08]} a6 {[%emt 0:00:52]} 5. dxc5 {[%emt 0:00:33]} Nc6 {[%emt 0:01:33]} 6. Nf3 {[%emt 0:01:28]} Bg4 {[%emt 0:02:57]} 7. h3 {[%emt 0:12:15]} Bxf3 {[%emt 0:03:43]} 8. Qxf3 {[%emt 0:11:05]} e6 {[%emt 0:03:26]} 9. Be2 {[%emt 0:09:15]} Bxc5 {[%emt 0:01:34]} 10. O-O {[%emt 0:06:55]} O-O {[%emt 0:01:21]} 11. e4 Nd4 12. Qd3 Nc6 13. Qf3 Nd4 14. Qd3 dxe4 15. Nxe4 1/2-1/2

[Event "58th Akiba Rubinstein D 2022"]
[Site "Polanica-Zdroj"]
[Date "2022.08.16"]
[Round "4.29"]
[White "Rosa, Antoni"]
[Black "Kuska, Bartosz"]
[Result "1/2-1/2"]
[ECO "A13"]
[WhiteElo "1598"]
[BlackElo "1432"]
[Annotator "NA RC"]
[PlyCount "48"]
[EventDate "2022.08.13"]
[EventCountry "POL"]
[SourceTitle "playchess.com"]
[Source "ChessBase"]
[SourceQuality "1"]
[TimeControl "40/5400+30:1800+30"]

1. c4 {[%emt 0:00:02]} e6 {[%emt 0:00:10]} 2. Nc3 {[%emt 0:00:22]} f5 {[%emt 0:00:21]} 3. d3 {[%emt 0:00:31]} Nf6 {[%emt 0:02:43]} 4. e4 {[%emt 0:01:29]} d6 {[%emt 0:03:34]} 5. g3 {[%emt 0:01:08]} Be7 {[%emt 0:01:06]} 6. Bg2 {[%emt 0:00:21]} Nc6 {[%emt 0:01:58]} 7. Nge2 {[%emt 0:00:47]} O-O {[%emt 0:02:33]} 8. O-O {[%emt 0:00:50]} fxe4 {[%emt 0:17:00]} 9. Nxe4 Nxe4 {[%emt 0:01:15]} 10. Bxe4 {[%emt 0:02:12]} e5 {[%emt 0:05:34]} 11. Nc3 {[%emt 0:05:35]} Bf5 {[%emt 0:07:26]} 12. Be3 {[%emt 0:00:30]} Bxe4 {[%emt 0:08:01]} 13. Nxe4 {[%emt 0:01:48]} Bf6 {[%emt 0:01:35]} 14. Qh5 {[%emt 0:04:01]} Qe8 {[%emt 0:02:39]} 15. Qd1 {[%emt 0:02:05]} Qd7 {[%emt 0:02:03]} 16. Kg2 {[%emt 0:10:42]} Ne7 {[%emt 0:04:51]} 17. b4 {[%emt 0:00:30]} b6 {[%emt 0:11:03]} 18. Qd2 {[%emt 0:05:26]} Nf5 {[%emt 0:08:17]} 19. Rae1 {[%emt 0:02:47]} c5 {[%emt 0:03:38]} 20. f4 {[%emt 0:04:24]} Nxe3+ {[%emt 0:05:48]} 21. Rxe3 {[%emt 0:00:59]} exf4 {[%emt 0:00:29]} 22. Rxf4 {[%emt 0:00:13]} Bd4 23. Ref3 Rxf4 {[%emt 0:02:42]} 24. Qxf4 {[%emt 0:01:38]} Be5 {[%emt 0:00:09]} 1/2-1/2

[Event "58th Akiba Rubinstein D 2022"]
[Site "Polanica-Zdroj"]
[Date "2022.08.16"]
[Round "4.30"]
[White "Perek, Oskar"]
[Black "Pietryk, Joanna"]
[Result "1/2-1/2"]
[ECO "B20"]
[WhiteElo "1555"]
[BlackElo "1417"]
[Annotator "NA RC"]
[PlyCount "65"]
[EventDate "2022.08.13"]
[EventCountry "POL"]
[SourceTitle "playchess.com"]
[Source "ChessBase"]
[SourceQuality "1"]
[TimeControl "40/5400+30:1800+30"]

1. e4 {[%emt 0:00:02]} c5 {[%emt 0:00:07]} 2. Qe2 {[%emt 0:00:11]} Nc6 {[%emt 0:00:45]} 3. Nf3 {[%emt 0:00:13]} d6 {[%emt 0:02:14]} 4. d3 {[%emt 0:00:24]} Nf6 {[%emt 0:01:19]} 5. g3 {[%emt 0:01:25]} g6 {[%emt 0:01:53]} 6. Bg2 {[%emt 0:01:18]} Bg7 {[%emt 0:01:01]} 7. O-O {[%emt 0:00:26]} Qb6 {[%emt 0:01:48]} 8. c3 {[%emt 0:00:28]} O-O {[%emt 0:02:18]} 9. Nbd2 {[%emt 0:00:40]} e5 {[%emt 0:01:58]} 10. Nc4 {[%emt 0:02:45]} Qc7 {[%emt 0:00:28]} 11. Ne3 {[%emt 0:00:35]} Be6 {[%emt 0:02:19]} 12. Ne1 {[%emt 0:02:28]} Ne7 {[%emt 0:02:13]} 13. f4 {[%emt 0:02:27]} exf4 {[%emt 0:04:03]} 14. gxf4 Qd7 {[%emt 0:03:09]} 15. Nf3 {[%emt 0:02:50]} Bh6 {[%emt 0:03:04]} 16. Ng5 {[%emt 0:02:42]} Nh5 {[%emt 0:03:59]} 17. Nc2 {[%emt 0:14:55]} Bxg5 {[%emt 0:03:06]} 18. fxg5 {[%emt 0:04:37]} d5 {[%emt 0:00:46]} 19. Bf3 {[%emt 0:00:30]} dxe4 {[%emt 0:07:10]} 20. dxe4 {[%emt 0:00:36]} Ng7 {[%emt 0:00:55]} 21. Be3 {[%emt 0:01:33]} Qc7 {[%emt 0:02:44]} 22. Bg2 {[%emt 0:01:11]} Rad8 {[%emt 0:02:38]} 23. Rad1 {[%emt 0:02:18]} b6 {[%emt 0:05:10]} 24. Bf4 {[%emt 0:01:29]} Qc8 {[%emt 0:00:42]} 25. Ne3 {[%emt 0:00:50]} Nc6 {[%emt 0:02:02]} 26. Nd5 {[%emt 0:02:14]} Nh5 {[%emt 0:04:04]} 27. Nf6+ {[%emt 0:03:45]} Nxf6 {[%emt 0:00:26]} 28. gxf6 {[%emt 0:00:09]} Rxd1 {[%emt 0:04:18]} 29. Rxd1 {[%emt 0:04:01]} Rd8 {[%emt 0:02:23]} 30. Bd6 {[%emt 0:03:18]} Bg4 {[%emt 0:02:12]} 31. Bf3 {[%emt 0:01:41]} Bxf3 {[%emt 0:00:46]} 32. Qxf3 {[%emt 0:00:55]} h5 {[%emt 0:01:43]} 33. Rd5 {[%emt 0:10:20]} 1/2-1/2

[Event "58th Akiba Rubinstein D 2022"]
[Site "Polanica-Zdroj"]
[Date "2022.08.17"]
[Round "5.1"]
[White "Lewandrowski, Tomasz"]
[Black "Jasiulewicz, Dawid"]
[Result "1-0"]
[ECO "D00"]
[WhiteElo "1902"]
[BlackElo "1525"]
[Annotator "TA"]
[PlyCount "79"]
[EventDate "2022.08.13"]
[EventCountry "POL"]
[SourceTitle "playchess.com"]
[Source "ChessBase"]
[SourceQuality "1"]
[TimeControl "40/5400+30:1800+30"]

{[%evp 9,79,-18,-36,-16,-20,-16,-9,-14,6,0,26,11,56,19,14,-37,-43,-56,-21,-45,-43,-58,60,38,42,41,69,74,67,69,98,72,84,87,116,95,99,107,99,98,105,91,106,66,126,113,142,104,100,102,123,107,381,407,398,397,368,373,539,473,522,508,5812,1864,29993,328,731,473,1742,850,29993,29994]} 1. d4 {[%emt 0:01:09]} d5 {[%emt 0:00:12]} 2. Nc3 {[%emt 0:00:22]} Nf6 {[%emt 0:00:11]} 3. Bf4 {[%emt 0:00:08]} a6 {[%emt 0:00:11]} 4. e3 {[%emt 0:00:18]} e6 {[%emt 0:00:07]} 5. Bd3 {[%emt 0:02:49]} c5 {[%emt 0:01:00]} 6. dxc5 {[%emt 0:00:24] D00: 1 d4 d5: Unusual lines.} Bxc5 {[%emt 0:00:55]} 7. Nf3 {[%emt 0:01:17]} O-O {[%emt 0:01:52]} 8. O-O {[%emt 0:04:41] The position is equal.} Nc6 {[%emt 0:00:43]} 9. e4 {[%emt 0:08:43]} d4 {[%emt 0:19:16]} 10. Ne2 {[%emt 0:01:07] [#]} Nd7 $146 {[%emt 0:05:26]} ({Predecessor:} 10... Qe7 11. e5 Nd5 12. Bg3 f6 13. exf6 Nxf6 14. c3 e5 15. cxd4 exd4 16. Re1 Qd8 {0-1 (29) Salimova,N (2353)-Zatonskih,A (2403) Warsaw 2021}) 11. c3 {[%emt 0:09:48]} dxc3 {[%emt 0:13:19]} 12. bxc3 {[%emt 0:00:21]} (12. Nxc3 $11 f6 13. Na4) 12... e5 $15 {[%emt 0:03:30]} 13. Bg3 {[%emt 0:01:42]} Qc7 {[%emt 0:04:05]} 14. Bc4 {[%emt 0:02:28][%cal Oe2d4]} Nf6 {[%emt 0:04:44]} 15. Qc2 {[%emt 0:01:17]} Be6 {[%emt 0:04:37]} ({Black should play} 15... Bg4 $15) 16. Bxe6 $14 {[%emt 0:02:09]} fxe6 {[%emt 0:00:02] [#]} 17. Ned4 $1 {[%emt 0:00:19]} Rfe8 {[%emt 0:02:53]} (17... Qc8 18. Nxc6) 18. Nxc6 {[%emt 0:04:09]} Qxc6 {[%emt 0:00:07]} 19. Rfe1 {[%emt 0:00:28]} Bb4 {[%emt 0:02:53]} 20. Rac1 {[%emt 0:04:34]} ({Of course not} 20. Nxe5 $6 Qxc3 21. Qe2 Rac8 $11) 20... Rac8 {[%emt 0:00:46][%cal Rb4c3]} 21. Bxe5 {[%emt 0:05:31]} Ng4 {[%emt 0:01:20]} 22. Qb3 {[%emt 0:01:39]} Ba5 {[%emt 0:04:20]} 23. Bd4 $1 {[%emt 0:01:10]} b5 {[%emt 0:02:57]} 24. h3 {[%emt 0:02:21]} Nf6 {[%emt 0:00:05]} 25. Ne5 {[%emt 0:00:13]} Qd6 {[%emt 0:03:22]} 26. a3 {[%emt 0:01:27]} Bb6 {[%emt 0:01:57]} (26... Nd7 $14 27. Nd3 Rc4) 27. Rcd1 $36 {[%emt 0:02:55][%mdl 2048] White has strong initiative.} Bc5 {[%emt 0:03:43]} 28. Nf3 {[%emt 0:03:25] Strongly threatening Bxf6. White is more active.} Qc6 {[%emt 0:01:48]} 29. Bxf6 {[%emt 0:02:28]} gxf6 {[%emt 0:00:06]} 30. e5 {[%emt 0:00:21][%cal Be4e5,Be5f6][%mdl 32]} Bf8 $2 {[%emt 0:04:09][%mdl 8192] Loses the game.} (30... f5 $16 {was worth a try.}) 31. exf6 $18 {[%emt 0:08:01]} Qxc3 {[%emt 0:03:56]} 32. Qxc3 {[%emt 0:00:09]} Rxc3 {[%emt 0:00:02]} 33. Rd7 {[%emt 0:00:17] f7+ would kill now.} Rb8 {[%emt 0:00:42]} (33... Rec8 $142 34. Rxe6 R8c7) 34. Re4 {[%emt 0:03:13] White wants to mate with Rg4+.} Rc4 {[%emt 0:04:35]} 35. Rxe6 {[%emt 0:01:29][%cal Oe6e8] Threatens to win with Re8!} a5 {[%emt 0:00:52] [#]} (35... Rbc8 $142 36. Ne5 Rc1+ 37. Kh2 R1c7) 36. Ng5 {[%emt 0:05:47]} (36. Re8 $142 $3 {[%mdl 512]} Rc1+ 37. Kh2 (37. Ne1 Rbc8 $18)) 36... h6 {[%emt 0:02:13] [#]} 37. Nf7 $2 {[%emt 0:04:45]} (37. Re8 $3 {[%mdl 512] mates} Rc1+ 38. Kh2 Rh1+ 39. Kxh1 Rxe8 40. f7+ Kh8 41. fxe8=Q Kg8 42. Qg6+ Kh8 43. Qh7#) 37... b4 $2 {[%emt 0:01:36]} (37... Rbc8 38. Ne5 R4c7) 38. axb4 {[%emt 0:00:01]} axb4 {[#]} (38... Rcxb4 $142 39. Nd8 R4b6) 39. Ne5 {[%emt 0:00:44]} (39. Nxh6+ $142 $1 {[%mdl 512]} Kh8 (39... Bxh6 40. f7+) 40. Nf7+ Kg8 41. Ng5 Rc1+ 42. Kh2) 39... Re4 {[%emt 0:01:04] [#]} 40. Re8 $3 {[%emt 0:01:27][%mdl 512] Weighted Error Value: White=0.34/Black=0.89} 1-0

[Event "58th Akiba Rubinstein D 2022"]
[Site "Polanica-Zdroj"]
[Date "2022.08.17"]
[Round "5.2"]
[White "Liskiewicz, Jakub"]
[Black "Kraczek, Cezary"]
[Result "1/2-1/2"]
[ECO "A65"]
[WhiteElo "1910"]
[BlackElo "1657"]
[Annotator "TA"]
[PlyCount "118"]
[EventDate "2022.08.13"]
[EventCountry "POL"]
[SourceTitle "playchess.com"]
[Source "ChessBase"]
[SourceQuality "1"]
[TimeControl "40/5400+30:1800+30"]

{[%evp 18,118,44,37,34,16,20,0,0,0,7,0,25,14,25,27,72,59,67,17,22,0,0,0,0,0,0,0,13,0,0,0,0,-59,107,75,84,86,115,117,83,77,108,104,553,553,553,553,542,245,201,289,5110,5327,4937,4937,4929,4818,29982,29983,29983,29984,29980,1030,733,432,1162,1099,29986,29987,29987,5122,29968,29970,29968,29969,29964,29960,12606,107,89,89,89,89,89,43,43,43,43,0,0,0,0,0,0,0,0,0,0,0,0,0,1166]} 1. d4 {[%emt 0:00:06]} Nf6 {[%emt 0:00:23]} 2. c4 {[%emt 0:00:09]} c5 {[%emt 0:00:51]} 3. d5 {[%emt 0:00:09]} e6 {[%emt 0:01:12]} 4. Nc3 {[%emt 0:00:11]} exd5 {[%emt 0:00:59]} 5. cxd5 {[%emt 0:00:13]} d6 {[%emt 0:01:03]} 6. e4 {[%emt 0:00:36]} g6 {[%emt 0:00:23]} 7. Bd3 {[%emt 0:00:23]} Bg7 {[%emt 0:01:27]} 8. Nge2 {[%emt 0:00:21]} a6 {[%emt 0:03:09]} 9. a4 {[%emt 0:02:01]} O-O {[%emt 0:02:21]} 10. O-O {[%emt 0:00:15]} Nbd7 {[%emt 0:03:02] A65: Modern Benoni: 6 e4.} 11. b3 {[%emt 0:01:57]} Re8 {[%emt 0:06:11]} 12. f3 {[%emt 0:00:17]} Ne5 {[%emt 0:06:08]} 13. Bc2 {[%emt 0:00:11]} Rb8 {[%emt 0:03:25]} 14. a5 {[%emt 0:01:12] [#]} b5 $146 {[%emt 0:03:21]} ({Predecessor:} 14... Qc7 15. f4 Ned7 16. Ra2 b5 17. axb6 Nxb6 18. Kh1 Nbd7 {1-0 (44) Nene,T-Lythgoe,S Gauteng 2011}) 15. axb6 $1 {[%emt 0:00:08]} Qxb6 {[%emt 0:00:43]} 16. Be3 {[%emt 0:00:17]} Bd7 {[%emt 0:09:14]} 17. h3 {[%emt 0:05:49]} Bb5 {[%emt 0:05:58]} 18. Nxb5 {[%emt 0:08:11]} (18. Qd2 $14) 18... axb5 $11 {[%emt 0:00:22]} 19. Qd2 {[%emt 0:09:29]} Ra8 {[%emt 0:06:02]} 20. Rxa8 {[%emt 0:03:27]} Rxa8 {[%emt 0:00:01]} 21. f4 {[%emt 0:01:26]} Ned7 {[%emt 0:00:54]} 22. b4 {[%emt 0:09:02][%cal Oe4e5]} Re8 {[%emt 0:04:13] Inhibits e5.} 23. Ng3 {[%emt 0:08:10]} Qc7 {[%emt 0:05:10]} 24. bxc5 {[%emt 0:08:52]} Nxc5 {[%emt 0:00:32]} 25. e5 {[%emt 0:08:22]} (25. Rc1 $11) 25... Nfd7 $2 {[%emt 0:05:00]} (25... dxe5 $15 {keeps the upper hand.} 26. fxe5 Qxe5 27. Bxc5 Qxg3) 26. e6 $1 $36 {[%emt 0:00:46][%mdl 2048] White has strong initiative. White is more active.} fxe6 {[%emt 0:04:58]} 27. dxe6 {[%emt 0:00:08]} Nb6 {[%emt 0:03:24][%cal Bd7b6,Bb6c4,Bc4e3][%mdl 32]} 28. f5 {[%emt 0:03:38]} Nc4 {[%emt 0:01:39]} 29. Qc1 {[%emt 0:03:16]} Nxe3 {[%emt 0:09:20]} 30. Qxe3 {[%emt 0:00:08] And now f6 would win.} gxf5 {[%emt 0:03:01][%mdl 8192]} (30... Qe7 $16 {is tougher.}) 31. Nxf5 $18 {[%emt 0:01:51] Hoping for e7.} Nxe6 {[%emt 0:02:57]} 32. Qe4 {[%emt 0:03:54][%cal Of5e7]} Bf8 {[%emt 0:04:03][%cal Od6d5] Inhibits Ne7+.} 33. Bb3 {[%emt 0:01:18]} (33. Nd4 $142 Qa7 34. Kh1 $1) 33... d5 {[%emt 0:00:33]} 34. Bxd5 {[%emt 0:00:26][%cal Bb3d5,Bd5c6,Bc6d7,Bd7e6][%mdl 32] Black must now prevent Nd4. Dancing on a razor blade.} Qb6+ {[%emt 0:01:10]} (34... Kh8) 35. Kh1 $1 {[%emt 0:03:31] White threatens Qe5 and mate.} ({Weaker is} 35. Nd4 Bc5 $11) 35... Kh8 {[%emt 0:01:04]} 36. Bc6 {[%emt 0:04:48]} ({Less strong is} 36. Qe5+ Ng7 37. Qa1 Qg6 $16) 36... Rc8 {[%emt 0:02:06]} 37. Bd7 {[%emt 0:00:42]} Rd8 {[%emt 0:00:57]} 38. Bxe6 {[%emt 0:00:15]} Qc7 {[%emt 0:00:44]} 39. Qg4 {[%emt 0:00:31][%csl Ge6][%cal Rg4g8]} Bg7 {[%emt 0:01:08]} 40. Qg5 {[%emt 0:01:55]} (40. Nxg7 $142 Qxg7 41. Qh5 Qd4 42. Qxb5 h6 43. Qh5 Qe3 44. Qa5 Qd4 45. Rf4 $3 {[%mdl 512]} Qd1+ 46. Kh2) 40... Rf8 {[%emt 0:00:32]} 41. Rf3 {[%emt 0:31:29]} Bf6 {[%emt 0:30:44]} (41... Qe5 $142 42. Qe3 Qa1+ 43. Qg1 Qxg1+ 44. Kxg1 h6) 42. Qh6 {[%emt 0:00:26][%cal Rh6f8]} Qd8 {[%emt 0:00:19] [#]} 43. Rd3 $3 {[%emt 0:01:46][%mdl 512]} Qa8 {[%emt 0:00:29]} 44. Rd1 {[%emt 0:02:14]} (44. Kh2 $142 Be5+ 45. g3 Rd8 {[#]} 46. Ne7 $1 Rg8 47. Bxg8 Qe4 48. Bd5 $1 Bg7 49. Qd6 $1) 44... b4 {[%emt 0:00:41]} 45. Nh4 {[%emt 0:00:47]} Bxh4 {[%emt 0:00:32]} 46. Qxh4 {[%emt 0:00:10]} Qa7 {[%emt 0:00:33]} 47. Qxb4 {[%emt 0:00:27][%cal Rb4f8]} Qg7 {[%emt 0:00:14]} 48. Qd4 $2 {[%emt 0:01:57]} (48. Rc1 $18 {[%cal Ob4f8] and the rest is easy. Qxf8+! would kill now.} Qf6 49. Re1) 48... Rf1+ $16 {[%emt 0:00:14]} 49. Kh2 {[%emt 0:00:19] Threatening mate with Qxg7+.} Rxd1 {[%emt 0:00:04]} 50. Qxd1 {[%emt 0:01:38] Intending Qd8+ and mate.} Qe5+ {[%emt 0:00:10]} 51. g3 {[%emt 0:00:33]} (51. Kg1 $16 Qxe6 52. Qd4+ Kg8 53. Kf2) 51... Qxe6 $14 {[%emt 0:00:04][%mdl 4096] Endgame KQ-KQ} 52. Qd4+ {[%emt 0:00:42]} Kg8 {[%emt 0:00:11]} 53. h4 {[%emt 0:00:35]} Qe2+ {[%emt 0:00:58] The position is equal.} 54. Kh3 {[%emt 0:00:08]} h5 {[%emt 0:01:01] Prevents Qg4+.} 55. Qd5+ {[%emt 0:00:37]} Kg7 {[%emt 0:00:58]} 56. Qg5+ {[%emt 0:00:57]} Kh7 {[%emt 0:00:22]} 57. Qf5+ {[%emt 0:00:42]} Kg7 {[%emt 0:00:05]} 58. Qd7+ {[%emt 0:01:31]} Kh6 {[%emt 0:00:47]} 59. Qf7 $2 {[%emt 0:00:10][%mdl 8192]} (59. Qc6+ $11 Kg7 60. Qd7+ Kf6 61. Qd8+ Kg6 62. Qg8+ Kh6 63. Qf8+ Kg6 64. Qh8) 59... Qh2+ {[%emt 0:00:43][%mdl 32768] Weighted Error Value: White=0.30/Black=0.80. An unexpected result.} 1/2-1/2

[Event "58th Akiba Rubinstein D 2022"]
[Site "Polanica-Zdroj"]
[Date "2022.08.17"]
[Round "5.3"]
[White "Kryzia, Wiktor"]
[Black "Gibala, Adam"]
[Result "0-1"]
[ECO "C02"]
[WhiteElo "1764"]
[BlackElo "1549"]
[Annotator "NA RC"]
[PlyCount "58"]
[EventDate "2022.08.13"]
[EventCountry "POL"]
[SourceTitle "playchess.com"]
[Source "ChessBase"]
[SourceQuality "1"]
[TimeControl "40/5400+30:1800+30"]

1. e4 {[%emt 0:00:08]} e6 {[%emt 0:00:03]} 2. d4 {[%emt 0:00:06]} d5 {[%emt 0:00:05]} 3. e5 {[%emt 0:02:45]} c5 {[%emt 0:00:05]} 4. c3 {[%emt 0:00:06]} Nc6 {[%emt 0:00:11]} 5. Nf3 {[%emt 0:00:20]} Bd7 {[%emt 0:00:06]} 6. Bd3 {[%emt 0:00:15]} cxd4 {[%emt 0:00:32]} 7. cxd4 {[%emt 0:00:09]} Qb6 {[%emt 0:00:28]} 8. Bc2 {[%emt 0:18:05]} Nge7 {[%emt 0:03:15]} 9. Nc3 {[%emt 0:01:43]} Nb4 {[%emt 0:00:57]} 10. a3 {[%emt 0:05:47]} Nxc2+ {[%emt 0:00:51]} 11. Qxc2 {[%emt 0:00:02]} Nf5 {[%emt 0:01:20]} 12. Be3 {[%emt 0:04:12]} a5 {[%emt 0:00:58]} 13. O-O {[%emt 0:19:02]} h5 {[%emt 0:01:32]} 14. b3 {[%emt 0:04:14]} Be7 {[%emt 0:03:25]} 15. Qd2 {[%emt 0:14:15]} Rc8 {[%emt 0:01:16]} 16. Rfb1 {[%emt 0:02:50]} O-O {[%emt 0:01:54]} 17. Qd3 {[%emt 0:05:27]} Rc7 {[%emt 0:02:57]} 18. Bd2 {[%emt 0:02:30]} f6 {[%emt 0:03:43]} 19. g3 {[%emt 0:03:23]} fxe5 {[%emt 0:01:26]} 20. dxe5 {[%emt 0:03:24]} Bc5 {[%emt 0:01:36]} 21. Be1 {[%emt 0:03:30]} Nd4 {[%emt 0:04:10]} 22. Nxd4 {[%emt 0:05:22]} Bxd4 {[%emt 0:00:08]} 23. Ra2 {[%emt 0:00:12]} Bc6 {[%emt 0:07:10]} 24. Na4 {[%emt 0:03:50]} Qa7 {[%emt 0:00:36]} 25. Qg6 {[%emt 0:00:15]} Rcf7 {[%emt 0:01:48]} 26. Qxe6 {[%emt 0:00:59]} Kh7 {[%emt 0:00:39]} 27. Qh3 {[%emt 0:00:31]} Bxf2+ {[%emt 0:00:11]} 28. Bxf2 {[%emt 0:00:34]} Rxf2 29. Qxh5+ {[%emt 0:00:05]} Kg8 {[%emt 0:00:11]} 0-1

[Event "58th Akiba Rubinstein D 2022"]
[Site "Polanica-Zdroj"]
[Date "2022.08.17"]
[Round "5.4"]
[White "Straszewski, Tomasz"]
[Black "Galuszka, Kamil"]
[Result "1/2-1/2"]
[ECO "E01"]
[WhiteElo "1716"]
[BlackElo "1976"]
[Annotator "TA"]
[PlyCount "96"]
[EventDate "2022.08.13"]
[EventCountry "POL"]
[SourceTitle "playchess.com"]
[Source "ChessBase"]
[SourceQuality "1"]
[TimeControl "40/5400+30:1800+30"]

{[%evp 9,96,-8,16,0,0,11,53,25,12,10,33,30,11,9,58,56,65,-34,-20,-22,-30,-21,-24,-37,-8,-16,-5,-54,-41,-39,-35,-47,-48,-66,-27,-70,-40,-65,-47,-79,-20,-28,-16,-8,2,0,0,0,0,0,0,0,0,0,0,0,0,0,0,0,0,0,0,0,0,0,3,3,3,0,0,0,0,0,0,0,0,0,0,0,0,0,0,0,0,0,0,0,24]} 1. d4 {[%emt 0:00:11]} e6 {[%emt 0:01:37]} 2. c4 {[%emt 0:00:07]} Nf6 {[%emt 0:00:15]} 3. g3 {[%emt 0:00:07]} d5 {[%emt 0:02:30]} 4. Bg2 {[%emt 0:00:06]} c6 {[%emt 0:01:46]} 5. Nc3 {[%emt 0:01:07]} Bb4 {[%emt 0:03:00]} 6. Qd3 {[%emt 0:00:17] E01: Catalan: Early deviations.} O-O {[%emt 0:03:51]} 7. Nf3 {[%emt 0:01:01] [#]} b5 $146 {[%emt 0:08:52]} ({Predecessor:} 7... b6 8. O-O dxc4 9. Qxc4 Ba6 10. Qxb4 Nd5 11. Nxd5 cxd5 12. Re1 Nc6 13. Qa3 Bb7 14. Bd2 {1-0 (29) Ibrahimli,M (2436)-Stark,L (2381) Chess.com INT 2021}) 8. cxb5 {[%emt 0:03:20] White is slightly better.} cxb5 {[%emt 0:00:01]} 9. O-O {[%emt 0:00:57]} a5 {[%emt 0:11:07]} 10. Nxb5 {[%emt 0:04:38]} Ba6 {[%emt 0:00:09]} 11. a4 {[%emt 0:00:04]} Qb6 {[%emt 0:00:05]} (11... Nc6 $11) 12. Ne5 $14 {[%emt 0:00:54]} Nc6 {[%emt 0:06:49]} 13. Bg5 {[%emt 0:05:24] White is more active.} (13. Nxc6 $14 Qxc6 14. Bg5) 13... Nxe5 $15 {[%emt 0:04:22]} 14. dxe5 {[%emt 0:01:25]} Nd7 {[%emt 0:00:05]} 15. Be3 {[%emt 0:02:27]} Bc5 {[%emt 0:04:19]} 16. Bf4 {[%emt 0:03:21]} Rab8 {[%emt 0:09:39]} 17. e4 {[%emt 0:05:49]} d4 {[%emt 0:00:15][%cal Ra6b5]} 18. Rfc1 {[%emt 0:00:20]} (18. Rfb1 $11 {should be considered.}) 18... Bxb5 {[%emt 0:08:25]} 19. axb5 {[%emt 0:00:47]} Qxb5 {[%emt 0:00:01]} 20. Qxb5 {[%emt 0:00:11]} Rxb5 {[%emt 0:00:02]} 21. Rc2 {[%emt 0:07:39]} Bb6 {[%emt 0:09:29]} 22. Rb1 {[%emt 0:11:34]} Rd8 {[%emt 0:07:09]} 23. Rd1 {[%emt 0:14:33]} Rc5 {[%emt 0:02:09]} 24. Rcd2 {[%emt 0:00:38]} Rc4 {[%emt 0:00:08]} ({Black should play} 24... Nxe5 $17 {...Nc4 is the strong threat.} 25. Rxd4 Rxd4 26. Rxd4 Ng4) 25. Bf1 $11 {[%emt 0:01:46]} Rb4 {[%emt 0:00:02]} 26. Rc2 {[%emt 0:01:55] Prevents Rc8. The position is equal.} Nc5 {[%emt 0:04:03]} 27. Bd2 {[%emt 0:02:08]} d3 $1 {[%emt 0:01:17]} 28. Rxc5 {[%emt 0:00:21]} Bxc5 {[%emt 0:00:03]} 29. Bxb4 {[%emt 0:00:06]} axb4 {[%emt 0:00:05]} 30. Rxd3 Rd4 {[%emt 0:01:51]} 31. Rxd4 {[%emt 0:00:31]} Bxd4 {[%emt 0:00:01][%mdl 4096] Endgame KB-KB} 32. b3 {[%emt 0:00:07]} Bxe5 {[%emt 0:00:04]} 33. f4 {[%emt 0:00:26]} Bd4+ {[%emt 0:00:10]} 34. Kg2 {[%emt 0:00:04]} g6 {[%emt 0:00:21]} 35. Kf3 {[%emt 0:00:07]} Kg7 {[%emt 0:00:12]} 36. Bc4 {[%emt 0:00:10]} e5 {[%emt 0:00:27]} 37. h3 {[%emt 0:00:35]} f6 {[%emt 0:00:12]} 38. f5 {[%emt 0:00:51]} Bc3 {[%emt 0:03:11]} 39. g4 {[%emt 0:01:04]} Kh6 {[%emt 0:01:40]} 40. Bg8 {[%emt 0:00:06]} Be1 {[%emt 0:03:04]} 41. Ke2 {[%emt 0:30:18]} Bg3 {[%emt 0:30:21]} 42. Kd3 {[%emt 0:01:26]} Kg7 {[%emt 0:00:36]} 43. Be6 {[%emt 0:00:39]} h5 {[%emt 0:00:41]} 44. fxg6 {[%emt 0:00:20]} Kxg6 {[%emt 0:00:14]} 45. gxh5+ {[%emt 0:00:04]} Kxh5 {[%emt 0:00:04]} 46. Bg4+ {[%emt 0:00:06]} Kg5 {[%emt 0:00:08]} 47. Bc8 {[%emt 0:00:05]} Kf4 {[%emt 0:00:15]} 48. Bf5 {[%emt 0:00:21]} Bh4 {[%emt 0:00:10] Weighted Error Value: White=0.10 (very precise) /Black=0.11 (very precise)} 1/2-1/2